fUSD/lending_fUSD_20240915
["ID","MTS","AMOUNT","RATE_DAILY","PERIOD"]
[338224669,1726391481668,-1820.58,0.00014794,2]
[338224670,1726391481677,-500.0,0.00014794,2]
[338224671,1726391481687,-5199.85,0.00014794,2]
[338224672,1726391481696,-500.0,0.00014794,2]
[338224673,1726391481705,-5199.85,0.00014794,2]
[338224674,1726391481714,-1395.15,0.00014794,2]
[338224675,1726391481723,-1820.58,0.00014794,2]
[338224676,1726391481733,-1395.15,0.00014794,2]
[338224677,1726391481743,-5199.85,0.00014794,2]
[338224678,1726391481752,-500.0,0.00014794,2]
[338224679,1726391481761,-1820.58,0.00014794,2]
[338224680,1726391481771,-1395.15,0.00014794,2]
[338224681,1726391481780,-5199.85,0.00014794,2]
[338224682,1726391481789,-1820.58,0.00014794,2]
[338224683,1726391481799,-5199.85,0.00014794,2]
[338224684,1726391481808,-1395.15,0.00014794,2]
[338224685,1726391481817,-1820.58,0.00014794,2]
[338224686,1726391481828,-500.0,0.00014794,2]
[338224687,1726391481837,-4409.42107595,0.00014794,2]
[338224688,1726391481873,-350.35020087,0.00014794,2]
[338224689,1726391481885,-440.07872318,0.00014794,2]
[338224690,1726391481894,-353.30792081,0.00014794,2]
[338224691,1726391481906,-1041.84207919,0.00014794,2]
[338224692,1726391481916,-114.35792081,0.00014794,2]
[338224693,1726391481928,-1706.22207919,0.00014794,2]
[338224694,1726391481938,-324.18974177,0.00014794,2]
[338224695,1726391481947,-659.58373892,0.00014794,2]
[338224696,1726391481959,-333.81892786,0.00014794,2]
[338224697,1726391481970,-1596.88006637,0.00014794,2]
[338224698,1726391481982,-2327.8579357,0.00014794,2]
[338224699,1726391481998,-281.70933115,0.00014794,2]
[338224700,1726391482007,-59.07211544,0.00014794,2]
[338224701,1726391482289,-250.0,0.00013959,2]
[338224702,1726391482299,-1761.50788456,0.00014794,2]
[338224703,1726391482308,-569.75356934,0.00014794,2]
[338224704,1726391482320,-825.39643066,0.00014794,2]
[338224705,1726391482330,-270.38571988,0.00014794,2]
[338224706,1726391482341,-541.92539657,0.00014794,2]
[338224707,1726391482352,-697.68583,0.00014794,2]
[338224708,1726391482363,-720.02828238,0.00014794,2]
[338224709,1726391482374,-502.49912,0.00014794,2]
[338224710,1726391483278,-485.29999995,0.00014794,2]
[338224711,1726391483289,-505.5664408,0.00014794,2]
[338224712,1726391483300,-1476.45921042,0.00014794,2]
[338224713,1726391483310,-1820.58,0.00014794,2]
[338224714,1726391483319,-1395.15,0.00014794,2]
[338224715,1726391483328,-5199.85,0.00014794,2]
[338224716,1726391483338,-1820.58,0.00014794,2]
[338224717,1726391483347,-1395.15,0.00014794,2]
[338224718,1726391483356,-5199.85,0.00014794,2]
[338224719,1726391483365,-1246.34642706,0.00014794,2]
[338224720,1726391483379,-148.80357294,0.00014794,2]
[338224721,1726391483387,-1091.57815459,0.00014794,2]
[338224722,1726391483399,-729.00184541,0.00014794,2]
[338224723,1726391483408,-578.99815872,0.00014794,2]
[338224724,1726391483420,-4620.85184128,0.00014794,2]
[338224725,1726391483429,-1395.15,0.00014794,2]
[338224726,1726391483439,-1820.58,0.00014794,2]
[338224727,1726391483448,-420.60849846,0.00014794,2]
[338224728,1726391483461,-863.18646921,0.00014794,2]
[338224729,1726391483473,-2999.6587433,0.00014794,2]
[338224730,1726391483484,-916.39628903,0.00014794,2]
[338224731,1726391483493,-1395.15,0.00014794,2]
[338224732,1726391483502,-5180.55,0.00014794,2]
[338224733,1726391483511,-1820.58,0.00014794,2]
[338224734,1726391483520,-2241.05143942,0.00014794,2]
[338224735,1726391483533,-2958.79856058,0.00014794,2]
[338224736,1726391483543,-5180.55,0.00014794,2]
[338224737,1726391483553,-1395.15,0.00014794,2]
[338224738,1726391483563,-1820.58,0.00014794,2]
[338224739,1726391483572,-5180.55,0.00014794,2]
[338224740,1726391483582,-5199.85,0.00014794,2]
[338224741,1726391483592,-1395.15,0.00014794,2]
[338224742,1726391483602,-391.13868434,0.00014794,2]
[338224743,1726391483755,-1011.57802586,0.00014794,2]
[338224744,1726391483795,-319.0,0.00014794,2]
[338224745,1726391483806,-98.8632898,0.00014794,2]
[338224746,1726391483815,-1395.15,0.00014794,2]
[338224747,1726391483824,-914.98,0.00014794,2]
[338224748,1726391483834,-1820.67484976,0.00014794,2]
[338224749,1726391483843,-914.98,0.00014794,2]
[338224750,1726391483852,-1395.15,0.00014794,2]
[338224751,1726391483862,-5180.55,0.00014794,2]
[338224752,1726391483871,-5199.85,0.00014794,2]
[338224753,1726391483880,-1395.15,0.00014794,2]
[338224754,1726391483890,-914.98,0.00014794,2]
[338224755,1726391483899,-5180.55,0.00014794,2]
[338224756,1726391483909,-5199.85,0.00014794,2]
[338224757,1726391483919,-1395.15,0.00014794,2]
[338224758,1726391483928,-914.98,0.00014794,2]
[338224759,1726391483937,-5180.55,0.00014794,2]
[338224760,1726391483947,-5199.85,0.00014794,2]
[338224761,1726391483957,-1395.15,0.00014794,2]
[338224762,1726391483966,-914.98,0.00014794,2]
[338224763,1726391483976,-5180.55,0.00014794,2]
[338224764,1726391483985,-5199.85,0.00014794,2]
[338224765,1726391483994,-1395.15,0.00014794,2]
[338224766,1726391484003,-5180.55,0.00014794,2]
[338224767,1726391484013,-5199.99876778,0.00014794,2]
[338224768,1726391484022,-1395.15,0.00014794,2]
[338224769,1726391484032,-1395.15,0.00014794,2]
[338224770,1726391484042,-5180.55,0.00014794,2]
[338224771,1726391484052,-914.98,0.00014794,2]
[338224772,1726391484061,-954.92,0.00014794,2]
[338224773,1726391484071,-1395.15,0.00014794,2]
[338224774,1726391484081,-914.98,0.00014794,2]
[338224775,1726391484090,-5180.55,0.00014794,2]
[338224776,1726391484100,-954.92,0.00014794,2]
[338224777,1726391484110,-1395.15,0.00014794,2]
[338224778,1726391484119,-2962.59316387,0.00014794,2]
[338224779,1726391484143,-648.16683613,0.00014794,2]
[338224780,1726391484153,-5123.72485644,0.00014794,2]
[338224781,1726391484165,-56.82514356,0.00014794,2]
[338224782,1726391484175,-914.98,0.00014794,2]
[338224783,1726391484189,-954.92,0.00014794,2]
[338224784,1726391484199,-1395.23634671,0.00014794,2]
[338224785,1726391484208,-5180.55,0.00014794,2]
[338224786,1726391484218,-914.98,0.00014794,2]
[338224787,1726391484228,-954.92,0.00014794,2]
[338224788,1726391484237,-3610.76,0.00014794,2]
[338224789,1726391484247,-5180.55,0.00014794,2]
[338224790,1726391484258,-954.92,0.00014794,2]
[338224791,1726391484268,-3610.76,0.00014794,2]
[338224792,1726391484277,-914.98,0.00014794,2]
[338224793,1726391484287,-5180.55,0.00014794,2]
[338224794,1726391484296,-954.92,0.00014794,2]
[338224795,1726391484306,-914.98,0.00014794,2]
[338224796,1726391484315,-954.92,0.00014794,2]
[338224797,1726391484324,-4512.81416569,0.00014794,2]
[338224798,1726391484339,-399.98561821,0.00014794,2]
[338224799,1726391484352,-267.7502161,0.00014794,2]
[338224800,1726391484361,-273.8637839,0.00014794,2]
[338224801,1726391484639,-641.1162161,0.00014794,2]
[338224802,1726391484648,-2986.45598444,0.00014794,2]
[338224803,1726391484660,-624.30401556,0.00014794,2]
[338224804,1726391484670,-5180.55,0.00014794,2]
[338224805,1726391484679,-1097.14,0.00014794,2]
[338224806,1726391484688,-954.92,0.00014794,2]
[338224807,1726391484697,-1947.09738444,0.00014794,2]
[338224808,1726391484709,-1663.66261556,0.00014794,2]
[338224809,1726391484718,-5180.55,0.00014794,2]
[338224810,1726391484728,-954.92,0.00014794,2]
[338224811,1726391484737,-914.98,0.00014794,2]
[338224812,1726391484747,-3610.76,0.00014794,2]
[338224813,1726391484757,-954.92,0.00014794,2]
[338224814,1726391484766,-5180.55,0.00014794,2]
[338224815,1726391484775,-914.98,0.00014794,2]
[338224816,1726391484785,-1097.14,0.00014794,2]
[338224817,1726391484795,-3610.76,0.00014794,2]
[338224818,1726391484804,-514.17709467,0.00014794,2]
[338224819,1726391484818,-572.08599567,0.00014794,2]
[338224820,1726391484829,-4094.28690966,0.00014794,2]
[338224821,1726391484840,-954.92,0.00014794,2]
[338224822,1726391484849,-1097.14,0.00014794,2]
[338224823,1726391484859,-3610.76,0.00014794,2]
[338224824,1726391484868,-2948.99309035,0.00014794,2]
[338224826,1726391824355,-150.0,0.00015,15]
[338224827,1726391853398,150.0,0.00011755,2]
[338224828,1726391853420,162.71,0.00011755,2]
[338224829,1726391894079,-735.77,0.000133,2]
[338224830,1726391894100,-1000.0,0.00013641,2]
[338224831,1726391894120,-807.22,0.00013733,2]
[338224832,1726391894141,-1557.01,0.00013765,2]
[338224833,1726391991732,86.833979,0.000102,5]
[338224834,1726391991759,11421.166021,0.000102,5]
[338224873,1726392172732,1050.0,0.00011,2]
[338224874,1726392252368,157.41,0.00010959,2]
[338224878,1726392399091,341.9,0.00011608,2]
[338224879,1726392456834,896.86,0.00010959,2]
[338224910,1726392631674,-552.46305185,0.0001288,2]
[338224911,1726392631759,-298.62086198,0.0001288,2]
[338224912,1726392631796,-91847.09935402,0.0001288,2]
[338224913,1726392631807,-4025.64687575,0.0001288,2]
[338224914,1726392631817,-809.99234803,0.000129,2]
[338224915,1726392631828,-1165.16293198,0.000129,2]
[338224916,1726392631837,-319.2109995,0.000129,2]
[338224917,1726392631846,-607.59505289,0.000129,2]
[338224918,1726392631855,-500.0,0.00012973,2]
[338224919,1726392631864,-500.0,0.00012973,2]
[338224920,1726392631874,-155.04,0.0001299,2]
[338224921,1726392631883,-155.04,0.0001299,2]
[338224922,1726392631892,-155.04,0.0001299,2]
[338224923,1726392631901,-155.04,0.0001299,2]
[338224924,1726392631910,-155.04,0.0001299,2]
[338224925,1726392631919,-155.04,0.0001299,2]
[338224926,1726392631928,-155.04,0.0001299,2]
[338224927,1726392631937,-155.04,0.0001299,2]
[338224928,1726392631946,-155.04,0.0001299,2]
[338224929,1726392631955,-155.04,0.0001299,2]
[338224930,1726392631964,-155.04,0.0001299,2]
[338224931,1726392631974,-155.04,0.0001299,2]
[338224932,1726392631983,-155.04,0.0001299,2]
[338224933,1726392631992,-216.748727,0.0001299,2]
[338224934,1726392632002,-500.0,0.00012999,2]
[338224935,1726392632013,-500.0,0.00012999,2]
[338224936,1726392632023,-332.02068214,0.00012999,2]
[338224938,1726392632032,-304.48627765,0.00012999,2]
[338224941,1726392632043,-195.51372235,0.00012999,2]
[338224943,1726392632052,-500.0,0.00012999,2]
[338224945,1726392632061,-500.0,0.00012999,2]
[338224946,1726392632070,-404.12927158,0.00012999,2]
[338224948,1726392632081,-500.0,0.00012999,2]
[338224949,1726392632090,-275.82602693,0.00012999,2]
[338224950,1726392632099,-1453.04957398,0.00013,2]
[338224951,1726392632334,-2322.8361515,0.00013,2]
[338224952,1726392632346,-5295.56352255,0.00013,2]
[338224953,1726392632356,-4957.06675285,0.00013,2]
[338224955,1726392638114,-29937.09634502,0.00013,2]
[338225102,1726392639676,-1050.1,0.00013,2]
[338225110,1726392639748,-761.49631856,0.00013,2]
[338225113,1726392639763,-1736.41306025,0.00013,2]
[338225116,1726392639781,-2063.47265773,0.00013,2]
[338225118,1726392639793,-256.62236691,0.00013,2]
[338225120,1726392639804,-1182.8,0.00013,2]
[338225122,1726392639817,-515.56383828,0.00013,2]
[338225124,1726392639828,-582.83643837,0.00013,2]
[338225127,1726392639840,-1979.79404271,0.00013,2]
[338225129,1726392639851,-874.11182625,0.00013,2]
[338225131,1726392639862,-666.66,0.00013,2]
[338225133,1726392639877,-116457.35725128,0.00013,2]
[338225135,1726392639889,-508.24708622,0.00013,2]
[338225138,1726392639901,-320.91406874,0.00013,2]
[338225140,1726392639912,-1995.77690403,0.00013,2]
[338225142,1726392639923,-760.74789201,0.00013,2]
[338225145,1726392639945,-1195.16112444,0.00013,2]
[338225147,1726392639955,-1340.09190073,0.00013,2]
[338225149,1726392639967,-16443.60010463,0.00013,2]
[338225151,1726392639976,-45210.44071638,0.00013,2]
[338225436,1726392642892,-961830.68341636,0.00013,2]
[338225489,1726392643430,-1016.1,0.00013,2]
[338225491,1726392643441,-305.43819093,0.00013,2]
[338225493,1726392643455,-40641.29442764,0.00013,2]
[338225565,1726392645698,-430.72220257,0.00013,2]
[338225575,1726392645788,-316.01403212,0.00013,2]
[338225578,1726392645799,-99458.50080013,0.00013,2]
[338225580,1726392645811,-824.59977352,0.00013,2]
[338225582,1726392645822,-362.68407531,0.00013,2]
[338225584,1726392645833,-2335.18041205,0.00013,2]
[338225586,1726392645844,-5605.89535856,0.00013,2]
[338225588,1726392645856,-2497.79507697,0.00013,2]
[338225591,1726392645871,-447.75170863,0.00013,2]
[338225593,1726392645883,-329.20700671,0.00013,2]
[338225595,1726392645894,-1750.24114476,0.00013,2]
[338225597,1726392645905,-1491.15000001,0.00013,2]
[338225599,1726392645916,-16062.3791908,0.00013,2]
[338225601,1726392645927,-1089.88117537,0.00013,2]
[338225604,1726392645942,-1383.40857251,0.00013,2]
[338225606,1726392645953,-2020.29015397,0.00013,2]
[338225624,1726392646349,-1009.77295673,0.00013,2]
[338225625,1726392646361,-1151.46518539,0.00013,2]
[338225626,1726392724507,193.6,0.00010959,2]
[338225627,1726392735078,161.33,0.00010959,2]
[338225628,1726392745777,806.68,0.00010959,2]
[338225629,1726392898039,159.09,0.00010959,2]
[338225630,1726392983189,-170.81,0.00012678,2]
[338225631,1726392983210,-800.0,0.00012771,2]
[338225632,1726392983231,-757.79150662,0.000128,2]
[338225633,1726392983250,-150.0,0.00012899,2]
[338225634,1726392983270,-1242.39849338,0.000129,2]
[338225635,1726392987174,-10000.0,0.000129,2]
[338225636,1726392987915,-10000.0,0.000129,2]
[338225637,1726392988506,-10000.0,0.000129,2]
[338225638,1726392989358,-9047.17829357,0.000129,2]
[338225639,1726392989379,-952.82170643,0.000129,2]
[338225640,1726392990080,-1060.21139837,0.000129,2]
[338225641,1726392990100,-307.84685496,0.000129,2]
[338225642,1726392990121,-171.17415423,0.000129,2]
[338225643,1726392990143,-8460.76759244,0.000129,2]
[338225644,1726392991567,-10000.0,0.000129,2]
[338225645,1726392998949,373.2,0.00010886,2]
[338225646,1726393030507,500.0,0.00011164,2]
[338225647,1726393058861,-1194.26,0.00012796,2]
[338225648,1726393058882,-300.0,0.00012879,2]
[338225649,1726393058903,-11816.74,0.0001288,2]
[338225650,1726393066658,-10000.0,0.0001288,2]
[338225651,1726393068064,-10000.0,0.0001288,2]
[338225652,1726393069583,-10000.0,0.0001288,2]
[338225653,1726393122530,1500.0,0.00012531,2]
[338225654,1726393179414,251.39949522,0.00012468,2]
[338225655,1726393223341,3209.33333334,0.0001264,2]
[338225656,1726393225676,250.0,0.00012416,2]
[338225657,1726393271312,4423.71,0.00012436,2]
[338225658,1726393287891,397.29,0.0001251,2]
[338225659,1726393343256,2139.55555556,0.0001264,2]
[338225660,1726393390125,156.46,0.00010959,2]
[338225661,1726393435597,360.0,0.00012551,2]
[338225662,1726393463465,1426.37037038,0.0001264,2]
[338225663,1726393480608,250.0,0.00012347,2]
[338225664,1726393488419,2975.65,0.00012385,2]
[338225665,1726393488620,2975.65,0.00012389,2]
[338225666,1726393488824,2975.65,0.00012392,2]
[338225667,1726393489187,2975.65,0.00012395,2]
[338225668,1726393489237,2975.65,0.00012398,2]
[338225669,1726393489431,2975.65,0.00012402,2]
[338225670,1726393489631,2975.65,0.00012405,2]
[338225671,1726393489887,2975.65,0.00012408,2]
[338225672,1726393490058,2975.65,0.00012411,2]
[338225673,1726393490445,2975.65,0.00012415,2]
[338225674,1726393490684,2975.65,0.00012418,2]
[338225675,1726393490887,2975.65,0.00012421,2]
[338225676,1726393491092,2975.65,0.00012424,2]
[338225677,1726393491297,2975.65,0.00012428,2]
[338225678,1726393491499,2975.65,0.00012431,2]
[338225679,1726393491693,2975.65,0.00012434,2]
[338225680,1726393491907,2975.65,0.00012438,2]
[338225681,1726393492109,2975.65,0.00012441,2]
[338225682,1726393492315,2975.65,0.00012444,2]
[338225683,1726393492513,2975.65,0.00012447,2]
[338225684,1726393583886,950.91358024,0.0001264,2]
[338225685,1726393590711,381.08,0.00010627,2]
[338225686,1726393611974,891.09,0.00012376,2]
[338225687,1726393646877,180.16164186,0.0001261,2]
[338225688,1726393655976,527.71,0.00012242,2]
[338225689,1726393704278,633.94238684,0.0001264,2]
[338225690,1726393741994,250.0,0.00012197,2]
[338225698,1726393791800,23900.0,0.00012187,2]
[338225699,1726393824623,422.62825788,0.0001264,2]
[338225700,1726393829873,2000.0,0.00012338,2]
[338225710,1726393831817,-168.43,0.00012667,2]
[338225712,1726393831826,-422.62825788,0.00012705,2]
[338225714,1726393831835,-204.822,0.0001274,2]
[338225716,1726393831844,-54.09870879,0.0001287,2]
[338225718,1726393831855,-1882.44432349,0.0001287,2]
[338225720,1726393831863,-40270.31924933,0.00012879,2]
[338225723,1726393831878,-350.0,0.00012879,2]
[338225725,1726393831889,-4670.58140367,0.00012879,2]
[338225727,1726393831900,-1390.07010212,0.00012879,2]
[338225729,1726393831912,-3319.02924488,0.00012879,2]
[338225731,1726393831921,-150.0,0.00012879,2]
[338225733,1726393831930,-300.0,0.00012879,2]
[338225735,1726393831940,-41328.5325481,0.0001288,2]
[338225736,1726393831949,-179.36,0.00012885,2]
[338225737,1726393831958,-381.08,0.00012891,2]
[338225739,1726393831968,-365.21,0.00012899,2]
[338225741,1726393831977,-846.3,0.00012899,2]
[338225743,1726393831986,-3386.2606,0.00012899,2]
[338225745,1726393831995,-499.99,0.00012899,2]
[338225746,1726393832006,-499.99,0.00012899,2]
[338225747,1726393832014,-150.99,0.00012899,2]
[338225748,1726393832023,-1500.25,0.00012899,2]
[338225749,1726393832032,-920.09,0.00012899,2]
[338225750,1726393832041,-7500.0,0.000129,2]
[338225751,1726393832051,-1817.1,0.00012973,2]
[338225752,1726393832060,-299.99,0.00012973,2]
[338225753,1726393832069,-999.99,0.00012973,2]
[338225754,1726393832078,-500.0,0.00012973,2]
[338225755,1726393832087,-500.0,0.00012973,2]
[338225757,1726393832096,-500.0,0.00012973,2]
[338225759,1726393832106,-1165.97,0.0001299,2]
[338225760,1726393832114,-150.8,0.0001299,2]
[338225762,1726393832133,-150.8,0.0001299,2]
[338225763,1726393832145,-150.8,0.0001299,2]
[338225765,1726393832154,-150.8,0.0001299,2]
[338225767,1726393832164,-150.8,0.0001299,2]
[338225769,1726393832173,-150.8,0.0001299,2]
[338225771,1726393832182,-150.8,0.0001299,2]
[338225772,1726393832191,-150.8,0.0001299,2]
[338225773,1726393832200,-150.8,0.0001299,2]
[338225774,1726393832209,-150.8,0.0001299,2]
[338225775,1726393832218,-150.8,0.0001299,2]
[338225776,1726393832227,-150.8,0.0001299,2]
[338225777,1726393832236,-150.8,0.0001299,2]
[338225778,1726393832246,-150.8,0.0001299,2]
[338225779,1726393832256,-150.8,0.0001299,2]
[338225780,1726393832265,-150.8,0.0001299,2]
[338225781,1726393832275,-150.8,0.0001299,2]
[338225782,1726393832284,-150.8,0.0001299,2]
[338225783,1726393832293,-150.8,0.0001299,2]
[338225784,1726393832301,-150.8,0.0001299,2]
[338225785,1726393832311,-150.8,0.0001299,2]
[338225786,1726393832320,-150.8,0.0001299,2]
[338225787,1726393832330,-150.8,0.0001299,2]
[338225788,1726393832341,-500.0,0.00012999,2]
[338225789,1726393832350,-500.0,0.00012999,2]
[338225790,1726393832359,-500.0,0.00012999,2]
[338225791,1726393832368,-509.57360251,0.00012999,2]
[338225792,1726393832378,-500.0,0.00012999,2]
[338225793,1726393832387,-500.0,0.00012999,2]
[338225794,1726393832396,-219.76902392,0.00012999,2]
[338225795,1726393832406,-500.0,0.00012999,2]
[338225796,1726393832415,-153.17885196,0.00012999,2]
[338225797,1726393832424,-500.0,0.00012999,2]
[338225798,1726393832434,-235.65727592,0.00012999,2]
[338225799,1726393832443,-500.0,0.00012999,2]
[338225800,1726393832453,-500.0,0.00012999,2]
[338225801,1726393832463,-469.35316808,0.00012999,2]
[338225802,1726393832472,-36060.42358294,0.00013,2]
[338225803,1726393832488,-883.41898325,0.00013,2]
[338225804,1726393832499,-3649.1702025,0.00013,2]
[338225805,1726393832511,-8680.88328834,0.00013,2]
[338225806,1726393832522,-5040.76527434,0.00013,2]
[338225807,1726393832534,-581.18,0.00013,2]
[338225808,1726393832545,-1075.43,0.00013,2]
[338225809,1726393832556,-3345.67823061,0.00013,2]
[338225810,1726393832567,-328.4348001,0.00013,2]
[338225811,1726393832579,-328.01300429,0.00013,2]
[338225812,1726393832590,-2314.4383043,0.00013,2]
[338225813,1726393832602,-1143.0,0.00013,2]
[338225814,1726393837946,-422.62825788,0.0001277,2]
[338225815,1726393837956,-50.71010472,0.00013,2]
[338225816,1726393837968,-42012.79648187,0.00013,2]
[338225817,1726393837980,-3704.1009641,0.00013,2]
[338225818,1726393838010,-5231.0,0.00013,2]
[338225819,1726393838022,-616.0766574,0.00013,2]
[338225820,1726393838034,-600.5,0.00013,2]
[338225821,1726393838046,-20302.02648502,0.00013,2]
[338225822,1726393838075,-504.3514221,0.00013,2]
[338225823,1726393838087,-10632.60736425,0.00013,2]
[338225824,1726393838097,-34173.82421936,0.00013,2]
[338225825,1726393838117,-1720.75393469,0.00013,2]
[338225826,1726393838208,-2973.57485311,0.00013,2]
[338225827,1726393838221,-4298.80109771,0.00013,2]
[338225828,1726393838232,-3353.94450525,0.00013,2]
[338225829,1726393838244,-667.24633407,0.00013,2]
[338225830,1726393838256,-5146.02669942,0.00013,2]
[338225831,1726393838268,-372.94911677,0.00013,2]
[338225832,1726393838284,-705.09885338,0.00013,2]
[338225833,1726393838295,-2146.17360397,0.00013,2]
[338225834,1726393838307,-1355.02815999,0.00013,2]
[338225835,1726393838319,-8076.7199976,0.00013,2]
[338225836,1726393838372,-307319.90967746,0.00013,2]
[338225837,1726393838384,-1079287.04093459,0.00013,2]
[338225838,1726393838396,-3547.97188898,0.00013,2]
[338225885,1726393839882,-297.50798804,0.00013,2]
[338225886,1726393840078,-875.6832297,0.00013,2]
[338225887,1726393840090,-2306.79205087,0.00013,2]
[338225888,1726393840106,-349.4,0.00013,2]
[338225889,1726393840125,-271.37002482,0.00013,2]
[338225890,1726393840137,-3406.05082035,0.00013,2]
[338225891,1726393840148,-473.28023069,0.00013,2]
[338225892,1726393840160,-1917.30000001,0.00013,2]
[338225896,1726393842924,-410.34044036,0.000129,2]
[338225897,1726393842937,-31.91755964,0.000129,2]
[338225898,1726393842947,-1115.4206274,0.00013,2]
[338225899,1726393842959,-3082.32537501,0.00013,2]
[338225900,1726393843043,-1404.61876171,0.00013,2]
[338225901,1726393843056,-1080096.53523473,0.00013,2]
[338225902,1726393843104,-4911.22029618,0.00013,2]
[338225906,1726393844366,-916.74900749,0.00013,2]
[338225907,1726393844377,-375.64484988,0.00013,2]
[338225908,1726393844388,-784.68994635,0.00013,2]
[338225909,1726393844400,-4568.00000004,0.00013,2]
[338225910,1726393844411,-776.06146747,0.00013,2]
[338225911,1726393844431,-16510.42542292,0.00013,2]
[338225913,1726393845899,-32947.27196235,0.00013,2]
[338225914,1726393845911,-1904.96994,0.00013,2]
[338225915,1726393845923,-1264.7968584,0.00013,2]
[338225916,1726393845934,-1531.57713695,0.00013,2]
[338225917,1726393845946,-55489.51273293,0.00013,2]
[338225918,1726393845957,-8385.9918445,0.00013,2]
[338225919,1726393845969,-261.60174887,0.00013,2]
[338225920,1726393845980,-1128.75496496,0.00013,2]
[338225921,1726393845992,-1064.73000001,0.00013,2]
[338225922,1726393846003,-7416.2350021,0.00013,2]
[338225923,1726393846015,-1744.32203037,0.00013,2]
[338225924,1726393846027,-417.95823573,0.00013,2]
[338225925,1726393846042,-299.07844765,0.00013,2]
[338225926,1726393846053,-268.25,0.00013,2]
[338225927,1726393846068,-3398.41651,0.00013,2]
[338225928,1726393846079,-8650.26506283,0.00013,2]
[338225929,1726393846090,-1453.49,0.00013,2]
[338225930,1726393846101,-2701.23101814,0.00013,2]
[338225931,1726393846112,-4694.20147376,0.00013,2]
[338225932,1726393846127,-422.91126348,0.00013,2]
[338225933,1726393846138,-547.44,0.00013,2]
[338225934,1726393846149,-1110.1255479,0.00013,2]
[338225935,1726393846161,-3596.64044679,0.00013,2]
[338225936,1726393846171,-505.3237055,0.00013,2]
[338225937,1726393846183,-487.94323696,0.00013,2]
[338225938,1726393846194,-678.72349785,0.00013,2]
[338225939,1726393846207,-850.03340466,0.00013,2]
[338225940,1726393846217,-283.49453764,0.00013,2]
[338225941,1726393846229,-1134.13449414,0.00013,2]
[338225942,1726393846240,-766.32926598,0.00013,2]
[338225943,1726393846251,-324.61636726,0.00013,2]
[338225944,1726393846262,-12410.3791457,0.00013,2]
[338225946,1726393846278,-290.05976315,0.00013,2]
[338225948,1726393846289,-1217.64466643,0.00013,2]
[338225950,1726393846300,-2372.81520537,0.00013,2]
[338225952,1726393846311,-1917.4034452,0.00013,2]
[338225954,1726393846322,-9923.04667477,0.00013,2]
[338225957,1726393846338,-2763.97217333,0.00013,2]
[338225959,1726393846349,-3168.79943377,0.00013,2]
[338225961,1726393846361,-8843.92475302,0.00013,2]
[338225963,1726393846372,-434.012,0.00013,2]
[338225997,1726393991567,215.46351447,0.00010959,2]
[338225998,1726393991592,365.33648553,0.00010959,2]
[338225999,1726394040603,591.82996975,0.000126,2]
[338226000,1726394040630,645.1663294,0.000126,2]
[338226001,1726394040655,713.56475667,0.000126,2]
[338226002,1726394040685,657.00537863,0.000126,2]
[338226003,1726394040710,646.716415,0.000126,2]
[338226004,1726394040737,1152.36357082,0.000126,2]
[338226005,1726394040763,990.13246371,0.000126,2]
[338226006,1726394040786,3644.93858179,0.000126,2]
[338226007,1726394058207,500.0,0.00011164,2]
[338226009,1726394160806,5954.2779,0.00012567,2]
[338226010,1726394170292,398.62,0.00010363,2]
[338226011,1726394170701,398.62,0.00012627,2]
[338226012,1726394226377,786.8,0.00012216,2]